bitfinex/quotes_SOLUSD_20240725
["timestamp","ask_amount","ask_price","bid_price","bid_amount"]
[1721918272257,6.4072,170.99,170.95,5.8496]
[1721918272560,6.4072,170.99,170.96,5.8491]
[1721918272979,6.4072,170.99,170.86,1.16994748]
[1721918272980,5.8493,170.97,170.9,14.6277]
[1721918273147,6.4072,170.99,170.95,5.8495]
[1721918273461,6.4072,170.99,170.9,29.2568]
[1721918273656,15.8552,171.01,170.91,1.16994429]
[1721918273963,389.9987949,171.15,170.91,21.16994429]
[1721918273964,15.3961,171.06,170.91,21.16994429]
[1721918274167,5.8449,171.09,171.04,5.8465]
[1721918274346,5.8452,171.08,171.03,14.6173]
[1721918274549,5.8457,171.07,171.01,5.8473]
[1721918274860,1.1696894,171.06,171.01,5.8473]
[1721918275042,7.0155894,171.06,171.01,5.8473]
[1721918275239,6.3474,171.1,171.02,14.6174]
[1721918275240,1.1696894,171.09,171.02,14.6174]
[1721918275452,5.8453,171.08,171.02,20.4643]
[1721918275768,5.8456,171.07,171.02,20.4643]
[1721918276063,5.8459,171.06,171.02,14.6174]
[1721918276259,5.8459,171.06,170.98,29.242]
[1721918276260,1.97122091,171.06,170.98,14.6209]
[1721918276458,5.8476,171.01,170.95,14.6239]
[1721918276646,1.1696894,171.0,170.95,14.6239]
[1721918276845,45.0,171.0,170.88,1.16990138]
[1721918277142,45.0,171.0,170.97,5.8489]
[1721918277341,45.0,171.01,170.97,5.8489]
[1721918277775,52.0172894,171.01,170.96,14.6226]
[1721918277971,52.0172894,171.01,170.88,1.16990138]
[1721918277972,45.0,171.01,170.88,1.16990138]
[1721918278275,37.8869894,171.0,170.92,5.8504]
[1721918278450,45.0,170.99,170.91,20.4779]
[1721918278778,76.03,170.97,170.79,2.18775619]
[1721918278978,76.03,170.97,170.72,6.0883]
[1721918278979,35.29,170.95,170.72,6.0883]
[1721918279188,5.8528,170.86,170.81,5.8543]
[1721918279465,46.1696894,170.85,170.79,5.855]
[1721918279680,46.1696894,170.85,170.75,14.6412]
[1721918279681,45.0,170.85,170.75,14.6412]
[1721918279880,5.8544,170.82,170.76,5.8561]
[1721918280167,50.8547,170.81,170.75,20.4976]
[1721918280577,5.855,170.8,170.75,14.6412]
[1721918280764,5.8557,170.78,170.71,14.6442]
[1721918281072,45.0,170.79,170.71,14.6442]
[1721918281271,1.1696894,170.78,170.73,5.8571]
[1721918281476,50.8553,170.79,170.74,5.8568]
[1721918281644,6.2079,170.82,170.74,14.642]
[1721918281844,45.0,170.81,170.74,14.642]
[1721918282041,5.8551,170.79,170.74,14.642]
[1721918282273,1.1696894,170.8,170.74,14.642]
[1721918282452,5.8555,170.78,170.72,5.8575]
[1721918282656,45.0,170.77,170.72,5.8575]
[1721918282880,45.0,170.78,170.74,5.8567]
[1721918283063,45.0,170.78,170.75,5.8563]
[1721918283401,45.0,170.78,170.77,5.8558]
[1721918283581,6.2079,170.82,170.79,14.6376]
[1721918283882,5.8534,170.85,170.8,5.8547]
[1721918284080,1.1696894,170.86,170.71,1.17101862]
[1721918284246,5.855,170.8,170.75,5.8564]
[1721918284584,1.1696894,170.85,170.8,20.4913]
[1721918284585,7.0226894,170.85,170.8,20.4913]
[1721918284876,58.0889,170.87,170.69,29.2917]
[1721918285053,1.1696894,170.84,170.77,5.8557]
[1721918285254,60.06012091,170.87,170.71,1.17106905]
[1721918285255,1.1696894,170.86,170.71,1.17106905]
[1721918285562,60.06012091,170.87,170.71,1.17106905]
[1721918285563,24.77012091,170.87,170.78,14.6386]
[1721918285866,5.8531,170.85,170.8,5.8547]
[1721918286560,22.7989,170.87,170.83,5.8536]
[1721918286879,22.7989,170.87,170.84,5.8533]
[1721918287262,6.5448,170.87,170.84,20.4863]
[1721918287559,22.6837,170.92,170.79,20.0]
[1721918287873,22.6837,170.92,170.88,14.6293]
[1721918288067,5.85,170.94,170.89,5.8514]
[1721918288267,1.1696894,170.96,170.89,5.8514]
[1721918288479,7.0190894,170.96,170.9,5.8511]
[1721918288683,7.0190894,170.96,170.82,29.2704]
[1721918288684,6.2483,170.97,170.91,14.6275]
[1721918288870,6.2483,170.97,170.83,1.17024096]
[1721918289369,6.2483,170.97,170.96,5.8493]
[1721918289560,6.2483,170.97,170.96,14.6233]
[1721918289996,6.2483,170.97,170.94,5.8498]
[1721918290154,6.2483,170.97,170.88,14.6293]
[1721918290495,7.4179894,170.97,170.88,14.6293]
[1721918290865,5.8497,170.95,170.89,5.8514]
[1721918291065,45.0,170.94,170.89,5.8514]
[1721918291286,45.0,170.94,170.85,14.6326]
[1721918291287,1.1696894,170.93,170.85,14.6326]
[1721918291455,45.0,170.94,170.85,14.6326]
[1721918291663,45.0,170.94,170.86,5.8525]
[1721918291664,5.8508,170.92,170.86,5.8525]
[1721918291883,45.0,170.91,170.88,14.63]
[1721918292163,5.8499,170.95,170.88,14.63]
[1721918292383,50.85,170.94,170.88,14.63]
[1721918292695,45.0,170.94,170.89,5.8517]
[1721918292903,45.0,170.94,170.84,14.6328]
[1721918293067,5.8509,170.92,170.86,5.8527]
[1721918293264,45.0,170.91,170.86,5.8527]
[1721918293460,45.0,170.91,170.87,5.8522]
[1721918293656,52.0203894,170.92,170.87,5.8522]
[1721918293957,46.1696894,170.92,170.87,5.8523]
[1721918294167,46.1696894,170.92,170.88,5.852]
[1721918294380,41.5383,170.97,170.92,5.8504]
[1721918294381,6.2483,170.97,170.92,5.8504]
[1721918294566,5.8496,170.95,170.9,5.8513]
[1721918294767,6.2483,170.97,170.89,14.6285]
[1721918294990,6.2483,170.97,170.9,5.851]
[1721918295161,6.2483,170.97,170.91,14.6268]
[1721918295365,6.2483,170.97,170.86,29.2624]
[1721918295559,15.1158,170.98,170.94,20.4748]
[1721918295763,15.1158,170.98,170.94,14.6249]
[1721918295960,6.5202,171.02,170.94,14.6249]
[1721918296185,6.5202,171.02,170.91,14.6274]
[1721918296390,7.0173894,171.01,170.95,5.8494]
[1721918296573,5.8477,171.01,170.96,5.8492]
[1721918296773,5.848,171.0,170.94,14.6247]
[1721918296974,5.8484,170.99,170.94,14.6247]
[1721918297165,1.1696894,171.01,170.95,5.8495]
[1721918297580,5.8482,171.0,170.95,5.8495]
[1721918297770,50.8483,170.99,170.94,20.4746]
[1721918297985,45.0,170.99,170.94,14.6247]
[1721918298172,45.0,170.99,170.98,5.8486]
[1721918298375,45.0,170.99,170.94,20.4745]
[1721918298577,45.0,170.99,170.94,14.6248]
[1721918298787,1.1696894,170.98,170.94,14.6248]
[1721918298971,5.8487,170.98,170.92,5.8504]
[1721918299287,45.0,170.97,170.93,5.8501]
[1721918299465,45.0,170.97,170.92,20.4766]
[1721918299466,50.849,170.97,170.92,20.4766]
[1721918299664,45.0,170.97,170.92,14.626]
[1721918300062,45.0,170.97,170.9,5.8513]
[1721918300063,5.8497,170.95,170.9,5.8513]
[1721918300298,45.0,170.94,170.91,5.8509]
[1721918300773,45.0,170.95,170.92,14.6266]
[1721918300987,45.0,170.95,170.93,5.8502]
[1721918301166,6.5202,171.02,170.86,29.2624]
[1721918301167,2.33192556,171.04,170.91,29.2547]
[1721918301440,6.007,171.07,170.92,1.16972141]
[1721918301626,6.007,171.07,170.91,35.4599]
[1721918301627,6.007,171.07,171.02,14.6178]
[1721918301888,6.007,171.07,170.97,14.6216]
[1721918302069,5.8462,171.05,170.98,5.8483]
[1721918302394,5.8459,171.06,171.0,20.4669]
[1721918302701,6.007,171.07,171.01,1.16945125]
[1721918302998,6.007,171.07,170.96,29.2459]
[1721918303234,15.2555,171.08,171.06,5.8459]
[1721918303428,8.0568843,171.15,171.06,29.2278]
[1721918303429,6.8871949,171.15,171.06,29.2278]
[1721918303577,6.8871949,171.15,171.07,1.16875264]
[1721918303795,6.8871949,171.15,170.97,40.74]
[1721918303796,6.8871949,171.15,171.08,14.6128]
[1721918303992,1.1696894,171.14,171.01,1.16890521]
[1721918304297,1.1696894,171.14,171.08,5.8451]
[1721918304593,0.7987949,171.15,170.98,1.16887363]
[1721918304807,0.7987949,171.15,171.13,5.8434]
[1721918304966,0.7987949,171.15,171.11,5.844]
[1721918305165,0.7987949,171.15,171.1,14.6111]
[1721918305381,0.7987949,171.15,171.05,14.6148]
[1721918305588,1.1696894,171.14,171.05,14.6148]
[1721918305789,0.7987949,171.15,171.09,14.6118]
[1721918305993,1.1696894,171.14,171.08,5.8451]
[1721918306202,1.1696894,171.14,171.08,14.6128]
[1721918306494,0.7987949,171.15,171.07,14.6132]
[1721918307097,0.7987949,171.15,171.07,20.4585]
[1721918307098,1.1696894,171.14,171.07,20.4585]
[1721918307271,1.1696894,171.14,171.04,5.8463]
[1721918307468,1.1696894,171.14,171.02,14.6174]
[1721918307699,5.8437,171.13,171.04,5.8463]
[1721918307998,1.9684843,171.15,171.04,5.8463]
[1721918307999,5.8444,171.11,171.04,5.8463]
[1721918308168,6.1343,171.12,170.98,1.16904575]
[1721918308361,6.1343,171.12,171.03,5.8467]
[1721918308595,6.1343,171.12,171.06,5.8457]
[1721918308765,6.1343,171.12,171.02,14.618]
[1721918308766,45.0,171.11,171.05,5.846]
[1721918308965,46.1696894,171.11,170.98,1.16910153]
[1721918309167,1.1696894,171.1,171.03,14.6165]
[1721918309594,1.1696894,171.1,171.05,5.8461]
[1721918309797,52.0141894,171.11,171.03,14.6165]
[1721918310094,45.0,171.11,171.03,14.6165]
[1721918310290,45.0,171.11,171.04,5.8462]
[1721918310500,50.8442,171.11,171.05,5.8461]
[1721918310879,1.1696894,171.1,171.03,20.4632]
[1721918311084,7.0141894,171.1,171.03,20.4632]
[1721918311283,45.0,171.09,171.03,14.6165]
[1721918311981,16.353,171.11,171.08,5.8452]
[1721918312198,0.7987949,171.15,171.1,14.6112]
[1721918312379,1.1696894,171.14,171.01,29.2363]
[1721918312583,0.7987949,171.15,171.01,29.2363]
[1721918312584,0.7987949,171.15,171.02,1.16913579]
[1721918312792,6.6415949,171.15,171.09,5.8447]
[1721918313200,6.6415949,171.15,171.1,5.8444]
[1721918313201,0.7987949,171.15,171.1,5.8444]
[1721918313434,5.8436,171.13,171.04,14.6159]
[1721918313572,0.7987949,171.15,171.04,14.6159]
[1721918313573,5.8446,171.1,171.04,14.6159]
[1721918313893,1.1696894,171.12,171.04,14.6159]
[1721918313894,7.0145894,171.09,171.04,14.6159]
[1721918314101,5.8452,171.08,171.0,43.858]
[1721918314311,1.1696894,171.14,171.03,14.617]
[1721918314593,0.7987949,171.15,171.05,14.6152]
[1721918314903,1.1696894,171.14,171.05,14.6152]
[1721918315200,1.1696894,171.14,171.01,14.6185]
[1721918315400,15.7779894,171.14,171.04,5.8463]
[1721918315605,15.7779894,171.14,171.03,5.8467]
[1721918315606,5.845,171.09,171.03,5.8467]
[1721918315807,45.0,171.08,171.04,5.8465]
[1721918315987,5.8444,171.11,171.04,14.6158]
[1721918316182,45.0,171.1,171.05,5.8459]
[1721918316685,0.7987949,171.15,171.05,30.39950813]
[1721918316885,0.7987949,171.15,171.11,5.8439]
[1721918317294,0.7987949,171.15,171.13,14.6083]
[1721918317686,0.7987949,171.15,171.05,1.16910813]
[1721918317988,0.7987949,171.15,171.05,29.2308]
[1721918318189,0.7987949,171.15,171.14,5.8431]
[1721918319103,0.7987949,171.15,171.11,5.844]
[1721918319308,0.7987949,171.15,171.09,14.6113]
[1721918319616,0.7987949,171.15,171.05,14.615]
[1721918319782,5.8443,171.11,171.06,5.8457]
[1721918319985,0.7987949,171.15,171.05,29.2307]
[1721918320507,0.7987949,171.15,171.14,5.8431]
[1721918321203,0.7987949,171.15,171.13,5.8433]
[1721918321399,0.7987949,171.15,171.14,20.451]
[1721918321600,0.7987949,171.15,171.12,5.8435]
[1721918322210,0.7987949,171.15,171.12,5.8438]
[1721918322385,0.7987949,171.15,171.14,5.8431]
[1721918323697,9.49e-05,171.15,171.14,7.01143969]
[1721918323899,9.49e-05,171.15,171.14,5.8431]
[1721918327132,9.49e-05,171.15,171.14,7.01129922]
[1721918327297,9.49e-05,171.15,171.14,5.8431]
[1721918330407,9.115424,171.32,171.16,49.2118]
[1721918330599,21.33592657,171.31,171.16,30.37964374]
[1721918330922,21.33592657,171.31,171.23,14.5995]
[1721918331100,21.33592657,171.31,171.23,20.4395]
[1721918331301,8.14642147,171.32,171.27,5.8387]
[1721918331598,8.14642147,171.32,171.26,14.5968]
[1721918331802,8.14642147,171.32,171.22,14.6006]
[1721918331998,22.73902147,171.32,171.18,14.6041]
[1721918332196,22.73902147,171.32,171.17,1.16815172]
[1721918332197,1.97122091,171.31,171.17,1.16815172]
[1721918332431,1.33592657,171.31,171.15,29.2139]
[1721918332604,35.92982657,171.31,171.18,14.6041]
[1721918332916,15.5603,171.26,171.14,14.6073]
[1721918333118,7.88792657,171.25,171.07,1.16854715]
[1721918333300,7.88792657,171.25,171.08,1.16862894]
[1721918333496,59.5996,171.24,171.13,14.6081]
[1721918333703,1.33592657,171.23,171.16,14.6054]
[1721918333922,1.33592657,171.23,171.14,5.8429]
[1721918334229,1.33592657,171.23,171.06,39.3367]
[1721918334230,5.841,171.21,171.12,14.6094]
[1721918334403,45.0,171.2,171.15,20.449]
[1721918334598,5.8405,171.22,171.15,14.6066]
[1721918334913,45.0,171.21,171.18,14.6039]
[1721918335107,45.0,171.21,171.19,5.8411]
[1721918335424,7.88792657,171.25,171.11,1.16829709]
[1721918335608,5.8401,171.23,171.1,30.3907103]
[1721918335814,7.88792657,171.25,171.1,30.3907103]
[1721918335815,7.17642657,171.22,171.17,14.6051]
[1721918336023,1.33592657,171.22,171.19,5.8413]
[1721918336225,1.33592657,171.22,171.17,14.6051]
[1721918336519,6.552,171.25,171.17,14.6051]
[1721918336721,50.8399,171.24,171.18,5.8414]
[1721918336900,45.0,171.24,171.19,5.8413]
[1721918337502,45.0,171.24,171.21,5.8406]
[1721918337734,50.84,171.24,171.16,14.606]
[1721918338023,50.84,171.24,171.16,20.4482]
[1721918338024,45.0,171.24,171.16,20.4482]
[1721918338321,21.33592657,171.23,171.12,14.6089]
[1721918338511,5.8415,171.19,171.14,5.8431]
[1721918338716,20.0,171.23,171.15,14.607]
[1721918339023,5.8415,171.19,171.11,14.6096]
[1721918339222,46.33592657,171.22,171.08,1.16862178]
[1721918339431,6.552,171.25,171.18,14.6038]
[1721918339614,6.552,171.25,171.08,1.16829626]
[1721918339615,20.0,171.24,171.14,14.6076]
[1721918339936,1.33592657,171.23,171.07,29.2271]
[1721918340100,1.33592657,171.23,171.16,14.6059]
[1721918340407,1.33592657,171.23,171.1,14.6105]
[1721918340608,5.842,171.18,171.1,14.6105]
[1721918340821,46.33592657,171.17,171.09,5.8448]
[1721918341128,46.33592657,171.17,171.06,14.6144]
[1721918341129,6.0106,171.15,171.06,14.6144]
[1721918341428,5.8439,171.12,170.98,30.41131206]
[1721918341597,46.33592657,171.11,171.04,14.6159]
[1721918341921,45.0,171.14,171.07,14.6133]
[1721918342126,46.33592657,171.14,171.07,14.6133]
[1721918342321,5.8435,171.13,171.07,14.6133]
[1721918342529,46.33592657,171.14,171.03,14.617]
[1721918342530,5.8442,171.11,171.03,14.617]
[1721918342708,1.33592657,171.1,171.05,5.8461]
[1721918343017,1.33592657,171.1,170.98,14.6208]
[1721918343224,5.846,171.06,171.0,5.8478]
[1721918343461,1.33592657,171.1,170.98,14.6208]
[1721918343462,45.0,171.05,171.01,5.8475]
[1721918343612,47.8601,171.12,170.92,28.33345088]
[1721918343613,41.3006,171.15,171.02,29.2362]
[1721918343818,46.33592657,171.14,171.09,5.8447]
[1721918344027,45.0,171.14,171.1,5.8442]
[1721918344206,45.0,171.14,171.07,14.613]
[1721918344418,1.33592657,171.13,171.07,14.613]
[1721918344735,6.0106,171.15,171.03,14.6167]
[1721918344736,1.33592657,171.14,171.03,14.6167]
[1721918345041,35.29,171.11,170.99,14.6205]
[1721918345232,5.8455,171.07,171.01,5.8475]
[1721918345410,1.33592657,171.06,170.96,29.245]
[1721918345608,20.0,171.1,171.04,5.8464]
[1721918345824,20.0,171.1,171.05,5.846]
[1721918345825,45.0,171.09,171.05,5.846]
[1721918346136,45.0,171.09,171.02,14.6176]
[1721918346312,1.33592657,171.08,170.98,14.621]
[1721918346513,7.18172657,171.07,171.01,5.8475]
[1721918346707,45.0,171.06,171.02,5.8472]
[1721918346914,46.33592657,171.09,170.99,5.8482]
[1721918346915,7.18232657,171.05,170.99,5.8482]
[1721918347208,45.0,171.04,171.0,5.8478]
[1721918347430,5.8463,171.05,170.97,14.6221]
[1721918347636,45.0,171.04,170.97,14.6221]
[1721918347837,57.2759,171.04,170.97,20.4707]
[1721918348008,45.0,171.04,170.97,14.6221]
[1721918348209,45.0,171.04,171.0,5.8479]
[1721918348410,5.8469,171.03,170.97,20.471]
[1721918348632,5.8469,171.03,170.9,1.16969989]
[1721918348633,45.0,171.04,170.94,29.249]
[1721918348838,46.33592657,171.04,170.9,1.16978687]
[1721918349049,46.33592657,171.04,170.9,1.16981581]
[1721918349344,50.8466,171.04,170.98,14.6212]
[1721918349636,5.85,170.94,170.89,6.11453799]
[1721918349813,45.0,170.93,170.83,1.01832377]
[1721918350138,45.0,170.93,170.81,68.8311]
[1721918350139,45.0,170.93,170.89,20.4805]
[1721918350449,45.0,170.93,170.81,36.75137127]
[1721918350450,5.8507,170.92,170.85,14.6321]
[1721918350611,45.0,170.91,170.87,5.8523]
[1721918350809,46.33592657,170.91,170.88,5.852]
[1721918351012,50.851,170.91,170.85,20.485]
[1721918351233,50.851,170.91,170.81,29.2706]
[1721918351234,45.0,170.91,170.83,5.8535]
[1721918351436,5.8518,170.89,170.84,5.8533]
[1721918351654,45.0,170.88,170.81,14.6355]
[1721918351940,45.0,170.91,170.87,14.6307]
[1721918352139,45.0,170.91,170.88,5.8519]
[1721918352353,6.4165,170.92,170.89,5.8514]
[1721918352511,6.4165,170.92,170.87,14.6307]
[1721918352846,35.29,170.9,170.73,30.0833949]
[1721918353056,35.29,170.88,170.73,30.0833949]
[1721918353217,5.8534,170.84,170.78,20.4932]
[1721918353412,21.97122091,170.87,170.77,14.6392]
[1721918353638,1.33592657,170.86,170.77,14.6392]
[1721918353818,1.33592657,170.86,170.78,5.8553]
[1721918353819,5.8537,170.84,170.78,5.8553]
[1721918354140,45.0,170.86,170.79,5.8549]
[1721918354141,46.33592657,170.83,170.79,5.8549]
[1721918354352,46.33592657,170.83,170.77,14.6392]
[1721918354353,45.0,170.82,170.78,5.8552]
[1721918354514,7.18932657,170.85,170.8,5.8547]
[1721918354715,45.0,170.86,170.8,14.6367]
[1721918354915,1.97122091,170.87,170.86,5.8527]
[1721918355162,22.2442,171.01,170.96,5.8493]
[1721918355364,22.2442,171.01,170.94,5.8496]
[1721918355365,16.3921,171.01,170.94,5.8496]
[1721918355641,10.5442,171.01,170.84,1.1691727]
[1721918355824,10.5442,171.01,170.87,29.2612]
[1721918356025,5.8487,170.98,170.92,5.8506]
[1721918356234,7.18502657,170.97,170.9,14.6276]
[1721918356432,1.33592657,170.97,170.92,5.8506]
[1721918356626,1.33592657,170.98,170.9,14.6276]
[1721918357031,7.18472657,170.98,170.92,5.8506]
[1721918357537,7.18462657,170.98,170.91,5.8507]
[1721918357744,7.18462657,170.98,170.9,14.6276]
[1721918357745,5.8498,170.95,170.9,14.6276]
[1721918358049,16.3919,171.01,170.94,5.8498]
[1721918358249,5.8479,171.0,170.94,5.8497]
[1721918358545,17.72772657,171.01,170.96,14.6226]
[1721918358838,1.33592657,171.0,170.9,1.96849031]
[1721918359246,5.8486,170.99,170.92,5.8504]
[1721918359430,1.33592657,170.98,170.91,14.627]
[1721918359627,5.849,170.97,170.91,20.4776]
[1721918359838,52.18532657,170.96,170.91,14.627]
[1721918360022,52.18532657,170.96,170.9,1.96849031]
[1721918360023,5.8504,170.93,170.9,1.96849031]
[1721918360225,1.33592657,170.94,170.9,1.96849031]
[1721918360448,1.33592657,170.95,170.92,5.8506]
[1721918360665,1.33592657,171.0,170.9,1.96849031]
[1721918360817,1.33592657,171.0,170.92,16.59425997]
[1721918361956,1.33592657,171.0,170.92,14.626]
[1721918362128,5.8486,170.99,170.93,5.85]
[1721918362330,45.0,170.98,170.94,5.85]
[1721918362659,45.0,170.98,170.95,20.4731]
[1721918362853,45.0,170.98,170.95,14.6238]
[1721918363027,45.0,170.98,170.91,14.6274]
[1721918363231,45.0,170.98,170.94,14.6246]
[1721918363562,45.0,170.98,170.96,5.8493]
[1721918364058,1.33592657,171.04,170.97,14.6224]
[1721918364256,5.847,171.03,170.98,5.8485]
[1721918364565,20.0,171.04,170.98,5.8485]
[1721918364860,5.8469,171.03,170.98,5.8483]
[1721918365157,1.33592657,171.04,171.01,5.8476]
[1721918365345,1.33592657,171.04,171.0,20.4677]
[1721918365546,1.33592657,171.04,171.0,14.6198]
[1721918365757,6.0592,171.05,170.97,14.6224]
[1721918365937,7.39512657,171.05,170.99,5.8479]
[1721918366132,1.33592657,171.04,170.98,5.8486]
[1721918366339,1.33592657,171.04,170.97,14.6224]
[1721918366340,5.8472,171.03,170.97,20.471]
[1721918366554,1.33592657,171.04,170.97,14.6224]
[1721918366753,7.39512657,171.05,170.99,14.6198]
[1721918366947,1.33592657,171.04,171.02,14.6181]
[1721918367158,6.0592,171.05,171.02,14.6181]
[1721918367644,17.79762657,171.07,171.02,20.4653]
[1721918367845,16.4617,171.07,171.02,20.4653]
[1721918368063,16.4617,171.07,171.02,14.6181]
[1721918368254,16.4617,171.07,171.03,5.8466]
[1721918368470,16.4617,171.07,171.02,14.6181]
[1721918368639,6.4729,171.09,171.02,14.6181]
[1721918368640,6.4729,171.09,171.05,5.8461]
[1721918368836,5.8438,171.12,171.06,5.8458]
[1721918369048,17.20332657,171.13,171.05,14.6155]
[1721918369251,17.20332657,171.13,171.01,5.8475]
[1721918369252,5.8459,171.06,171.01,5.8475]
[1721918369439,1.33592657,171.05,171.0,5.8476]
[1721918369636,7.18222657,171.05,170.99,14.6206]
[1721918369839,1.33592657,171.05,170.99,14.6206]
[1721918370041,1.33592657,171.05,171.01,5.8474]
[1721918370278,5.8452,171.08,171.03,5.8467]
[1721918370442,1.33592657,171.07,171.04,5.8464]
[1721918370641,35.18,171.08,171.02,14.6179]
[1721918370969,80.18,171.07,170.88,6.3849]
[1721918371145,5.8487,170.98,170.92,20.4764]
[1721918371348,45.0,170.97,170.92,14.6261]
[1721918371552,45.0,170.97,170.89,1.9686055]
[1721918371758,45.0,170.98,170.89,1.9686055]
[1721918372055,45.0,170.98,170.94,5.8497]
[1721918372266,45.0,170.99,170.91,14.6272]
[1721918372440,7.18452657,170.98,170.92,5.8504]
[1721918372644,80.18,170.97,170.89,5.8517]
[1721918372860,1.33592657,170.96,170.89,5.8517]
[1721918373042,1.33592657,170.96,170.87,14.6302]
[1721918373043,1.33592657,170.95,170.87,14.6302]
[1721918373241,100.18,170.97,170.87,14.6302]
[1721918373442,1.33592657,170.96,170.87,14.6302]
[1721918373645,5.8503,170.93,170.84,14.6335]
[1721918373844,46.33592657,170.92,170.84,14.6335]
[1721918374078,5.8516,170.9,170.84,14.6335]
[1721918374269,45.0,170.89,170.84,20.4869]
[1721918374466,5.8524,170.87,170.8,15.80691395]
[1721918374651,45.0,170.86,170.8,14.6362]
[1721918374847,46.33592657,170.89,170.8,14.6362]
[1721918375072,45.0,170.89,170.82,14.6344]
[1721918375375,45.0,170.89,170.84,5.8533]
[1721918375674,45.0,170.89,170.82,14.6344]
[1721918375974,5.8534,170.84,170.78,14.6381]
[1721918376184,46.33592657,170.89,170.84,14.6334]
[1721918376470,45.0,170.89,170.77,30.44938876]
[1721918376683,1.33592657,170.91,170.85,5.853]
[1721918376684,7.18692657,170.91,170.85,5.853]
[1721918376850,1.33592657,170.91,170.85,5.853]
[1721918377052,7.78982657,170.93,170.88,5.8517]
[1721918377253,12.3043,170.93,170.87,14.6308]
[1721918377579,5.8514,170.9,170.85,5.8527]
[1721918377768,1.33592657,170.94,170.81,29.2708]
[1721918378076,7.18592657,170.94,170.88,5.8519]
[1721918378379,1.33592657,170.93,170.85,5.8528]
[1721918378599,5.8514,170.9,170.84,5.8534]
[1721918378758,7.18682657,170.92,170.83,14.6337]
[1721918379076,7.18662657,170.92,170.86,14.6318]
[1721918379254,5.8504,170.93,170.86,14.6318]
[1721918379459,5.8504,170.93,170.88,5.852]
[1721918379460,45.0,170.92,170.88,5.852]
[1721918379674,45.0,170.92,170.86,14.6318]
[1721918379675,45.0,170.92,170.87,5.8523]
[1721918379968,45.0,170.92,170.88,5.8519]
[1721918380172,5.8512,170.91,170.86,14.6318]
[1721918380366,50.8514,170.9,170.86,14.6318]
[1721918380676,50.8514,170.9,170.82,1.96941221]
[1721918380677,45.0,170.9,170.82,1.96941221]
[1721918380884,5.8525,170.87,170.81,5.8541]
[1721918381170,45.0,170.9,170.82,14.635]
[1721918381476,1.33592657,170.94,170.85,14.6323]
[1721918381860,36.51592657,170.94,170.82,14.6352]
[1721918382064,68.51,170.92,170.82,14.6352]
[1721918382271,55.18,170.91,170.82,14.6352]
[1721918382474,55.18,170.91,170.82,20.4892]
[1721918382784,55.18,170.91,170.82,14.6352]
[1721918383075,5.8527,170.87,170.82,14.6352]
[1721918383380,45.0,170.86,170.82,14.6352]
[1721918383876,45.0,170.86,170.83,5.8534]
[1721918384081,45.0,170.86,170.82,14.6352]
[1721918384463,50.8527,170.86,170.82,14.6352]
[1721918384873,45.0,170.86,170.82,20.4892]
[1721918385070,50.8526,170.87,170.82,14.6352]
[1721918385278,50.8524,170.87,170.82,14.6352]
[1721918385770,50.8524,170.87,170.82,20.4892]
[1721918386079,5.8537,170.83,170.78,14.638]
[1721918386268,5.8534,170.85,170.78,14.638]
[1721918386474,5.8542,170.82,170.75,14.6412]
[1721918386668,5.8552,170.79,170.74,5.8567]
[1721918387000,45.0,170.78,170.75,14.6406]
[1721918387168,7.18962657,170.83,170.75,14.6406]
[1721918387376,46.33592657,170.82,170.75,14.6406]
[1721918387682,45.0,170.82,170.75,14.6406]
[1721918387878,1.33592657,170.81,170.77,5.8558]